bitfinex/quotes_BTCUSD_20260315
["timestamp","ask_amount","ask_price","bid_price","bid_amount"]
[1773613377806,0.13005799,71917.0,71902.0,0.06943989]
[1773613378300,0.06952468,71917.0,71902.0,0.06943989]
[1773613378508,0.06053331,71917.0,71902.0,0.06943989]
[1773613378708,0.0002,71918.0,71902.0,0.06943989]
[1773613378901,0.0002,71918.0,71903.0,0.06380946]
[1773613379302,0.0002,71918.0,71908.0,0.05798164]
[1773613379516,0.0002,71918.0,71903.0,0.06380946]
[1773613379517,0.0002,71918.0,71909.0,0.00144]
[1773613379693,0.13005039,71925.0,71909.0,0.00144]
[1773613380024,0.06951493,71927.0,71909.0,0.00144]
[1773613380256,0.06053331,71932.0,71909.0,0.00144]
[1773613380470,0.06053331,71931.0,71910.0,0.06953135]
[1773613382148,0.06073331,71931.0,71910.0,0.06953135]
[1773613382816,0.06073331,71931.0,71910.0,0.06938361]
[1773613383994,0.06073331,71931.0,71911.0,0.06380946]
[1773613384416,0.0002,71931.0,71911.0,0.06380946]
[1773613384602,0.0002,71931.0,71912.0,0.06952942]
[1773613384801,0.0002,71931.0,71913.0,0.06380946]
[1773613386935,0.0002,71931.0,71914.0,0.06952749]
[1773613387250,0.0002,71931.0,71915.0,0.06524946]
[1773613388349,0.11762485,71941.0,71915.0,0.06524946]
[1773613388517,0.05709154,71941.0,71915.0,0.06535624]
[1773613388718,0.06053331,71940.0,71915.0,0.06535624]
[1773613388913,0.06053331,71938.0,71917.0,0.06380946]
[1773613389119,0.06053331,71938.0,71916.0,0.06952555]
[1773613389770,0.06053331,71938.0,71916.0,0.13333501]
[1773613390182,0.06053331,71938.0,71916.0,0.06952555]
[1773613390385,5e-05,71944.0,71917.0,0.06380946]
[1773613390537,0.06053331,71943.0,71917.0,0.06380946]
[1773613391171,0.06053331,71943.0,71918.0,0.06952362]
[1773613391350,0.06053331,71943.0,71919.0,0.06380946]
[1773613392147,0.0002,71931.0,71919.0,0.06380946]
[1773613392550,0.0002,71931.0,71918.0,0.06952362]
[1773613396121,0.0002,71931.0,71918.0,0.06937594]
[1773613396285,0.0002,71931.0,71918.0,0.1331854]
[1773613399369,0.0002,71931.0,71918.0,0.06937594]
[1773613399734,0.06970337,71939.0,71917.0,0.06952362]
[1773613399735,0.13799111,71937.0,71917.0,0.06952362]
[1773613400075,0.06053331,71936.0,71918.0,0.07096362]
[1773613400451,0.06053331,71934.0,71919.0,0.00144]
[1773613400865,0.06950719,71936.0,71919.0,0.00144]
[1773613401034,0.06950719,71936.0,71920.0,0.06380946]
[1773613401235,0.06950719,71936.0,71919.0,0.00144]
[1773613401467,0.06053331,71935.0,71919.0,0.00144]
[1773613401678,0.0002,71931.0,71919.0,0.00144]
[1773613402638,0.13093842,71931.0,71920.0,0.06952169]
[1773613402858,0.13093842,71931.0,71920.0,0.1274816]
[1773613404287,0.0002,71931.0,71920.0,0.1274816]
[1773613404891,0.13093786,71931.0,71920.0,0.1274816]
[1773613405123,0.06142676,71931.0,71920.0,0.1274816]
[1773613405460,0.06951013,71932.0,71920.0,0.1274816]
[1773613405901,0.06122676,71931.0,71920.0,0.1274816]
[1773613406102,0.06122676,71931.0,71920.0,0.06952169]
[1773613406470,0.06950622,71938.0,71920.0,0.1274816]
[1773613406787,0.13073298,71938.0,71921.0,0.05997477]
[1773613408913,0.13073298,71938.0,71922.0,0.06951975]
[1773613409181,0.06950622,71938.0,71922.0,0.06951975]
[1773613409382,0.06122676,71937.0,71922.0,0.06951975]
[1773613410341,0.06122676,71937.0,71922.0,0.03409224]
[1773613410966,0.06122676,71935.0,71923.0,0.00144]
[1773613412045,0.06122676,71935.0,71915.0,0.07107329]
[1773613412783,0.06222676,71935.0,71915.0,0.07107329]
[1773613412987,0.06122676,71933.0,71915.0,0.07107329]
[1773613415497,0.06951009,71932.0,71915.0,0.07107329]
[1773613415722,0.06122676,71931.0,71915.0,0.07107329]
[1773613417709,0.06951202,71930.0,71915.0,0.07107329]
[1773613417920,0.06122676,71929.0,71915.0,0.07107329]
[1773613419198,0.06222676,71929.0,71915.0,0.07107329]
[1773613419564,0.001,71929.0,71915.0,0.07107329]
[1773613420037,0.06951395,71928.0,71915.0,0.07107329]
[1773613420285,0.06951395,71928.0,71915.0,0.07129329]
[1773613420468,0.06951395,71928.0,71915.0,0.00176678]
[1773613420786,0.06951395,71928.0,71916.0,0.00144]
[1773613421159,0.06951395,71928.0,71915.0,0.00032678]
[1773613421366,0.06951395,71928.0,71917.0,0.00144]
[1773613421568,0.06951395,71928.0,71915.0,0.00032678]
[1773613421769,0.06951395,71928.0,71916.0,0.00144]
[1773613422737,0.07051395,71928.0,71916.0,0.00144]
[1773613423285,0.07151395,71928.0,71916.0,0.00144]
[1773613423481,0.07051395,71928.0,71916.0,0.00144]
[1773613424073,0.06951395,71928.0,71916.0,0.00144]
[1773613424472,0.07051395,71928.0,71916.0,0.00144]
[1773613424784,0.07151395,71928.0,71916.0,0.00144]
[1773613424984,0.07051395,71928.0,71916.0,0.00144]
[1773613425189,0.06951395,71928.0,71916.0,0.00144]
[1773613425383,0.07151395,71928.0,71916.0,0.00144]
[1773613425706,0.07051395,71928.0,71916.0,0.00144]
[1773613426118,0.06951395,71928.0,71915.0,0.00176678]
[1773613426296,0.06951395,71928.0,71910.0,0.00022]
[1773613426474,0.05795991,71920.0,71909.0,0.00144]
[1773613426667,0.00144,71923.0,71909.0,0.00144]
[1773613426904,0.00144,71923.0,71907.0,0.00144]
[1773613427293,0.00144,71923.0,71900.0,0.13562705]
[1773613427470,0.00144,71923.0,71898.0,0.07001382]
[1773613427471,0.05795991,71920.0,71901.0,0.00144]
[1773613428494,0.06952265,71919.0,71901.0,0.00144]
[1773613428705,0.06952265,71919.0,71898.0,0.07001377]
[1773613429298,0.06952265,71919.0,71898.0,0.000471]
[1773613429523,0.34765265,71919.0,71899.0,0.00144]
[1773613429724,0.34865265,71919.0,71899.0,0.00144]
[1773613430325,0.34965265,71919.0,71899.0,0.00144]
[1773613430946,0.34765265,71919.0,71899.0,0.00144]
[1773613431433,0.00144,71918.0,71900.0,0.06603819]
[1773613431770,0.27957,71918.0,71900.0,0.06603819]
[1773613431927,0.00144,71917.0,71899.0,0.00144]
[1773613432124,0.27957,71917.0,71899.0,0.00144]
[1773613432805,0.06952555,71916.0,71899.0,0.00144]
[1773613432961,0.34765555,71916.0,71899.0,0.00144]
[1773613434387,0.34765555,71916.0,71898.0,0.000471]
[1773613434550,0.34765555,71916.0,71898.0,0.001911]
[1773613435506,0.05795991,71910.0,71899.0,0.00022]
[1773613435674,0.33608991,71910.0,71899.0,0.00022]
[1773613435841,0.33608991,71910.0,71898.0,1e-08]
[1773613436040,0.1413253,71909.0,71891.0,1e-08]
[1773613436248,0.1413253,71909.0,71890.0,0.00022]
[1773613436249,0.05795991,71901.0,71890.0,0.00022]
[1773613436524,0.05795991,71901.0,71885.0,0.13578775]
[1773613436525,0.33608991,71901.0,71885.0,0.0002786]
[1773613437074,0.06954102,71900.0,71885.0,0.0002786]
[1773613437285,0.34767102,71900.0,71885.0,0.0002786]
[1773613437487,0.34767102,71900.0,71885.0,0.00033532]
[1773613438089,0.34767102,71900.0,71884.0,0.00022]
[1773613438290,0.34777768,71900.0,71884.0,0.00022]
[1773613439019,0.34777768,71900.0,71876.0,0.06956416]
[1773613439207,0.34777768,71900.0,71876.0,0.07100396]
[1773613442865,0.34777768,71900.0,71877.0,0.06956315]
[1773613443068,0.34777768,71900.0,71879.0,0.06978037]
[1773613443268,0.06954296,71898.0,71882.0,0.06955844]
[1773613443470,0.06954296,71898.0,71881.0,0.06955844]
[1773613443471,0.05795991,71892.0,71879.0,0.00022]
[1773613443882,0.00144,71891.0,71879.0,0.00022]
[1773613444209,0.00144,71891.0,71879.0,1e-08]
[1773613444368,0.27957,71891.0,71879.0,1e-08]
[1773613445356,0.0695507,71890.0,71879.0,1e-08]
[1773613445560,0.3476807,71890.0,71879.0,1e-08]
[1773613446390,0.27813,71890.0,71881.0,0.06580531]
[1773613446754,0.27813,71890.0,71879.0,0.00144001]
[1773613447999,0.06955166,71889.0,71880.0,0.06956037]
[1773613449275,0.34768166,71890.0,71880.0,0.06956037]
[1773613449500,0.12446135,71890.0,71881.0,0.06586983]
[1773613451304,0.12446135,71890.0,71880.0,0.00022]
[1773613451504,0.00144,71889.0,71875.0,5e-05]
[1773613452219,0.00144,71889.0,71873.0,0.06624262]
[1773613452430,0.00144,71889.0,71872.0,0.0004486]
[1773613452578,0.06955263,71888.0,71872.0,0.0004486]
[1773613453389,0.06955263,71888.0,71872.0,0.07698111]
[1773613454321,0.12446232,71888.0,71872.0,0.07698111]
[1773613454938,0.05795991,71882.0,71872.0,0.0002178]
[1773613455112,0.05795991,71882.0,71860.0,0.0002522]
[1773613455113,0.05795991,71871.0,71864.0,1e-08]
[1773613455309,0.00144,71875.0,71864.0,1e-08]
[1773613455580,0.05634969,71875.0,71857.0,0.00022]
[1773613455712,0.05795991,71870.0,71857.0,0.00022]
[1773613455918,0.05795991,71865.0,71852.0,0.01919973]
[1773613456120,0.00144,71864.0,71852.0,0.00022]
[1773613456377,0.05634969,71864.0,71852.0,0.00057619]
[1773613456669,0.10445046,71862.0,71848.0,5e-05]
[1773613456966,0.06957877,71861.0,71848.0,0.00015684]
[1773613457196,0.12431118,71861.0,71848.0,0.00015684]
[1773613457891,0.12431118,71861.0,71849.0,0.06028344]
[1773613458033,0.1241339,71861.0,71849.0,0.06028344]
[1773613458638,0.1251339,71861.0,71849.0,0.06028344]
[1773613459385,0.1251339,71861.0,71848.0,0.00015684]
[1773613459594,0.00015509,71866.0,71848.0,0.00015684]
[1773613459595,0.00144,71872.0,71849.0,0.06028344]
[1773613459822,0.05706799,71873.0,71852.0,0.03271968]
[1773613459992,0.001,71861.0,71852.0,0.03271968]
[1773613460191,0.00082272,71861.0,71852.0,0.03271968]
[1773613460391,0.05706799,71873.0,71852.0,0.03271968]
[1773613460731,0.06955747,71883.0,71852.0,0.03271968]
[1773613460732,0.00144,71876.0,71852.0,0.03271968]
[1773613460888,0.00144,71875.0,71852.0,0.03271968]
[1773613461327,0.06956424,71876.0,71853.0,0.06958651]
[1773613461568,0.00144,71875.0,71854.0,0.03268376]
[1773613462090,0.05729351,71874.0,71854.0,0.03268376]
[1773613462740,0.05729351,71874.0,71853.0,0.06958651]
[1773613463745,0.12686066,71873.0,71853.0,0.10198201]
[1773613464341,0.12686066,71873.0,71853.0,0.06958651]
[1773613464696,0.06956715,71873.0,71854.0,0.03224243]
[1773613465480,0.05729351,71872.0,71853.0,0.06980651]
[1773613465631,0.05729351,71870.0,71853.0,0.06980616]
[1773613465836,0.05729351,71870.0,71853.0,0.06980642]
[1773613466030,0.05711625,71870.0,71853.0,0.06980642]
[1773613466772,0.00144,71869.0,71853.0,0.06980642]
[1773613466937,0.05729351,71868.0,71853.0,0.06980642]
[1773613467786,0.06957296,71867.0,71853.0,0.06980642]
[1773613468846,0.06957296,71867.0,71854.0,0.03182726]
[1773613469256,5e-05,71887.0,71854.0,0.03182726]
[1773613469458,0.0005213,71919.0,71881.0,0.00710162]
[1773613469664,0.0005213,71919.0,71855.0,0.896837]
[1773613469665,0.05793932,71912.0,71908.0,0.24311229]
[1773613469859,0.05793932,71912.0,71897.0,0.00144]
[1773613470201,5e-05,71912.0,71897.0,0.00144]
[1773613470427,0.24373281,71920.0,71897.0,0.00144]
[1773613470428,0.07095696,71925.0,71898.0,0.06115497]
[1773613470571,0.05729351,71924.0,71892.0,0.06125517]
[1773613470778,0.05729351,71924.0,71893.0,0.00144]
[1773613471191,0.05729351,71924.0,71894.0,0.06115497]
[1773613471803,0.05729351,71922.0,71895.0,0.06954586]
[1773613473247,0.05729351,71922.0,71893.0,0.07098688]
[1773613473453,0.05729351,71919.0,71893.0,0.00144]
[1773613473709,0.05729351,71919.0,71894.0,0.00144]
[1773613473914,0.06952362,71918.0,71894.0,0.00144]
[1773613474071,0.05873351,71917.0,71894.0,0.00144]
[1773613474651,0.05873351,71917.0,71892.0,0.0001002]
[1773613474884,0.15814079,71909.0,71879.0,0.06115497]
[1773613475232,0.05729351,71907.0,71886.0,0.00144]
[1773613476037,0.05729351,71905.0,71886.0,0.00144]
[1773613477119,0.06953522,71906.0,71887.0,0.06115497]
[1773613477316,0.06953522,71906.0,71886.0,0.07099386]
[1773613477317,0.05729351,71903.0,71886.0,0.00144]
[1773613477939,0.05873351,71903.0,71886.0,0.00144]
[1773613478172,0.06953909,71902.0,71882.0,0.04232506]
[1773613478326,0.05729351,71901.0,71887.0,0.00144]
[1773613478509,0.05764926,71901.0,71887.0,0.00144]
[1773613479700,0.00035575,71901.0,71888.0,0.06115497]
[1773613480799,0.06954102,71900.0,71888.0,0.13070686]
[1773613481504,0.07009671,71901.0,71888.0,0.06955189]
[1773613481718,0.06954102,71900.0,71889.0,0.06115497]
[1773613481898,0.06954102,71900.0,71887.0,0.00144]
[1773613484126,0.12683453,71900.0,71887.0,0.00144]
[1773613484372,0.05729351,71899.0,71887.0,0.00144]
[1773613484551,0.05729351,71899.0,71886.0,0.00144]
[1773613484726,0.06954296,71898.0,71886.0,0.00144]
[1773613484935,0.12683647,71898.0,71886.0,0.00144]
[1773613485339,0.05729351,71897.0,71886.0,0.00144]
[1773613485869,0.06954296,71898.0,71886.0,0.13214947]
[1773613486035,0.06954296,71898.0,71887.0,0.06115497]
[1773613487071,0.06954296,71899.0,71887.0,0.06115497]
[1773613488371,0.06954296,71899.0,71887.0,0.13070836]
[1773613490926,0.06954296,71899.0,71887.0,0.13092836]
[1773613491143,0.06954296,71899.0,71887.0,0.00022]
[1773613494206,0.06367843,71898.0,71880.0,5e-05]
[1773613494325,0.06367843,71898.0,71884.0,0.00144]
[1773613494525,0.00144,71897.0,71884.0,0.00144]
[1773613494760,0.06367843,71896.0,71880.0,5e-05]
[1773613495079,0.06954296,71899.0,71881.0,0.06245253]
[1773613495225,0.06954296,71899.0,71882.0,0.06955844]
[1773613495422,0.13322139,71899.0,71882.0,0.06955844]
[1773613497397,0.00055575,71901.0,71882.0,0.06955844]
[1773613497557,0.00055575,71901.0,71884.0,0.06245253]
[1773613497747,0.0700961,71901.0,71884.0,0.06245253]
[1773613497943,0.00055575,71901.0,71884.0,0.06245253]
[1773613498578,0.00055575,71901.0,71886.0,0.06245253]
[1773613499152,0.00055575,71901.0,71887.0,0.11048151]
[1773613499803,0.00055575,71901.0,71888.0,0.06955263]
[1773613500914,0.00055575,71901.0,71889.0,0.06245253]
[1773613501117,0.06953337,71908.0,71889.0,0.06389253]
[1773613501344,0.00010668,71908.0,71889.0,0.06389253]
[1773613501544,0.00010668,71908.0,71890.0,0.11048151]
[1773613501761,0.00010668,71908.0,71891.0,0.06245253]
[1773613501964,0.00010668,71908.0,71895.0,0.06245253]
[1773613502171,0.0002,71909.0,71896.0,0.11192151]
[1773613502396,0.0002,71909.0,71897.0,0.06245253]
[1773613502548,0.0002,71907.0,71897.0,0.06245253]
[1773613503420,0.0002,71907.0,71896.0,0.11202819]
[1773613503831,0.13321462,71905.0,71896.0,0.00154668]
[1773613504096,0.13321462,71905.0,71896.0,0.00010668]
[1773613504297,0.06953619,71905.0,71897.0,0.00144]
[1773613504430,0.06367843,71904.0,71897.0,0.00144]
[1773613504629,0.06367843,71904.0,71896.0,0.00010668]
[1773613504860,0.06367843,71904.0,71897.0,0.00144]
[1773613505231,0.06367843,71904.0,71896.0,0.00010668]
[1773613505458,0.06367843,71904.0,71897.0,0.00144]
[1773613505840,0.06953812,71903.0,71896.0,0.00010668]
[1773613506039,0.06953619,71905.0,71896.0,0.00010668]
[1773613506040,0.0695356,71906.0,71896.0,0.00154668]
[1773613506244,0.06973427,71907.0,71896.0,0.00154668]
[1773613506443,0.1334127,71907.0,71896.0,0.00154668]
[1773613509365,0.0002,71907.0,71896.0,0.07109157]
[1773613509555,0.06973446,71907.0,71896.0,0.07109157]
[1773613509917,0.02519438,73144.0,71897.0,0.06245253]
[1773613509918,0.06952652,71915.0,71897.0,0.06245253]
[1773613510342,0.06952652,71915.0,71899.0,0.06245253]
[1773613512434,0.06972652,71915.0,71901.0,0.06245253]
[1773613512829,0.0002,71915.0,71902.0,0.00144]
[1773613513033,0.0002,71915.0,71903.0,0.06245253]
[1773613514897,0.0002,71915.0,71904.0,0.06953716]
[1773613515701,0.06972563,71916.0,71905.0,0.06245253]
[1773613516464,0.06972563,71916.0,71904.0,0.06953716]
[1773613518790,0.0002,71916.0,71904.0,0.06953716]
[1773613519668,0.06972557,71916.0,71904.0,0.06953716]
[1773613520080,0.0002,71916.0,71904.0,0.06953716]
[1773613520718,0.06950719,71935.0,71905.0,0.06245253]
[1773613520922,0.06367843,71933.0,71905.0,0.06245253]
[1773613521518,0.06367843,71931.0,71905.0,0.06245253]
[1773613521721,0.06367843,71929.0,71907.0,0.06245253]
[1773613522316,0.00144,71928.0,71907.0,0.06245253]
[1773613522532,0.07098613,71928.0,71907.0,0.06245253]
[1773613522733,0.06954613,71928.0,71909.0,0.06659154]
[1773613523116,0.06951202,71932.0,71909.0,0.06659154]
[1773613523117,0.06950526,71937.0,71909.0,0.06659154]
[1773613523698,0.06950526,71937.0,71911.0,0.18789607]
[1773613523941,0.06950526,71937.0,71912.0,0.06659154]
[1773613524725,0.06950526,71937.0,71914.0,0.06659154]
[1773613525072,0.06950526,71939.0,71914.0,0.06659154]
[1773613525285,0.13905139,71939.0,71914.0,0.06659154]
[1773613525438,0.06950526,71939.0,71914.0,0.06659154]
[1773613526250,0.06950244,71940.0,71916.0,0.06659154]
[1773613526462,0.0005133,71963.0,71931.0,0.06659154]
[1773613526662,0.0005133,71963.0,71930.0,0.17397435]
[1773613526663,0.06483254,71961.0,71933.0,0.06659154]
[1773613526968,0.13437867,71961.0,71933.0,0.06659154]
[1773613527170,0.06483254,71961.0,71934.0,0.06659154]
[1773613527383,0.06964944,71962.0,71934.0,0.06659154]
[1773613527608,0.0697563,71962.0,71934.0,0.06659154]
[1773613527796,0.0697563,71962.0,71938.0,0.06659154]
[1773613528058,0.06946984,71974.0,71941.0,0.18789607]
[1773613528204,0.06946984,71974.0,71943.0,0.06949946]
[1773613528205,0.0002,71945.0,71943.0,0.06949946]
[1773613528560,0.0002,71952.0,71944.0,0.00144]
[1773613528697,0.17249813,71969.0,71945.0,0.06659154]
[1773613528893,0.06954613,71968.0,71945.0,0.06659154]
[1773613529144,0.06954613,71968.0,71946.0,0.00144]
[1773613529356,0.06954613,71968.0,71946.0,0.00154686]
[1773613530031,0.06954613,71968.0,71947.0,0.06659154]
[1773613530409,0.06954613,71966.0,71948.0,0.06949463]
[1773613531049,0.06947628,71967.0,71949.0,0.06659154]
[1773613531656,0.06947628,71967.0,71946.0,0.00010686]
[1773613531657,0.06954613,71966.0,71946.0,0.00010686]
[1773613531829,0.06954613,71966.0,71937.0,0.00144]
[1773613532004,0.06954613,71964.0,71938.0,0.00144]
[1773613532555,0.06954613,71962.0,71940.0,0.1360939]
[1773613533137,0.00144,71961.0,71940.0,0.1360939]
[1773613533477,0.06954613,71960.0,71939.0,0.06950236]
[1773613534578,0.06954613,71958.0,71930.0,0.06951202]
[1773613534782,0.06954613,71958.0,71931.0,0.00144]
[1773613535490,0.06954613,71958.0,71932.0,0.00144]
[1773613535665,0.06954613,71958.0,71932.0,0.06803154]
[1773613536462,0.06948594,71957.0,71933.0,0.06950912]
[1773613536661,0.06948594,71957.0,71934.0,0.06659154]
[1773613536662,0.06954613,71956.0,71934.0,0.06659154]
[1773613538202,0.06948594,71957.0,71934.0,0.06659154]
[1773613538631,0.06948401,71959.0,71935.0,0.06950719]
[1773613538966,0.06948304,71960.0,71936.0,0.06659154]
[1773613541004,0.06948304,71961.0,71938.0,0.06659154]
[1773613541241,0.06948304,71961.0,71940.0,0.06659154]
[1773613541444,0.06954613,71960.0,71940.0,0.06659154]
[1773613542159,0.06954613,71960.0,71939.0,0.00144]
[1773613542693,0.06954613,71958.0,71939.0,0.00144]
[1773613543252,0.06948594,71957.0,71940.0,0.06950236]
[1773613543454,0.13903207,71957.0,71940.0,0.06950236]
[1773613543760,0.06948594,71957.0,71940.0,0.06950236]
[1773613543979,0.06968427,71959.0,71941.0,0.06659154]
[1773613545355,0.06968427,71959.0,71942.0,0.13609197]
[1773613545779,0.06968427,71959.0,71942.0,0.06950043]
[1773613545953,0.06954613,71958.0,71942.0,0.06950043]
[1773613546364,0.06968486,71959.0,71943.0,0.06659154]
[1773613547277,0.06968486,71959.0,71944.0,0.06949849]
[1773613547481,0.06968486,71959.0,71945.0,0.00144]
[1773613548359,0.06968486,71959.0,71946.0,0.06659154]
[1773613548572,0.0002,71959.0,71946.0,0.06659154]
[1773613548720,0.06968427,71959.0,71945.0,0.00144]
[1773613549127,0.06968427,71959.0,71946.0,0.06659154]
[1773613550053,0.06968427,71959.0,71945.0,0.00144]
[1773613550262,0.06954613,71958.0,71946.0,0.00144]
[1773613550467,0.06968427,71959.0,71946.0,0.06803154]
[1773613550614,0.06968427,71959.0,71946.0,0.00144]
[1773613551057,0.06969494,71964.0,71943.0,0.06659154]
[1773613551253,0.06969494,71964.0,71945.0,0.06659154]
[1773613551411,0.06969494,71964.0,71947.0,0.06659154]
[1773613551611,0.06969494,71964.0,71946.0,0.00144]
[1773613551814,0.06954613,71963.0,71947.0,0.00144]
[1773613552055,0.06948111,71962.0,71948.0,0.06949463]
[1773613552436,0.06948111,71962.0,71947.0,0.069495]
[1773613552638,0.06707668,71961.0,71944.0,0.06949849]
[1773613552841,0.06707668,71961.0,71948.0,0.00144]
[1773613553167,0.06948111,71962.0,71948.0,0.00144]
[1773613553721,0.06596705,71961.0,71948.0,0.00144]
[1773613554267,0.06948304,71960.0,71948.0,0.00144]
[1773613554730,0.06596705,71959.0,71943.0,0.06971849]
[1773613555166,0.06596705,71959.0,71944.0,0.00144]
[1773613556388,0.06596705,71957.0,71944.0,0.00144]
[1773613557153,0.06596705,71957.0,71944.0,0.07093843]
[1773613557985,0.06948497,71958.0,71944.0,0.07093843]
[1773613559432,0.13545202,71958.0,71944.0,0.07093843]
[1773613559641,0.41342202,71958.0,71944.0,0.07093843]
[1773613559936,0.169,71957.0,71944.0,0.07093843]
[1773613560137,0.44697,71957.0,71944.0,0.07093843]
[1773613560500,0.06596705,71972.0,71945.0,0.06799076]
[1773613560706,0.01032106,71978.0,71949.0,0.11089614]
[1773613560707,0.06947358,71970.0,71949.0,0.11089614]
[1773613560907,0.06958433,71966.0,71949.0,0.06799076]
[1773613561431,0.06958407,71966.0,71950.0,0.06799076]
[1773613561636,0.06954407,71966.0,71951.0,0.00144]
[1773613561831,0.06954407,71966.0,71951.0,0.06943076]
[1773613564373,0.06954407,71966.0,71952.0,0.06949077]
[1773613564671,0.06596705,71965.0,71950.0,0.00144]
[1773613566510,0.06947918,71964.0,71950.0,0.00144]
[1773613566687,0.06596705,71963.0,71950.0,0.00144]
[1773613567623,0.06596705,71963.0,71943.0,0.06971919]
[1773613567842,0.06596705,71963.0,71947.0,0.00144]
[1773613568016,0.06596705,71963.0,71943.0,0.00022]
[1773613568217,0.07091918,71964.0,71935.0,0.00022]
[1773613568218,0.06596705,71959.0,71935.0,0.00022]
[1773613568387,0.06596705,71959.0,71936.0,0.00144]
[1773613568586,0.06948497,71958.0,71936.0,0.00144]
[1773613568826,0.06596705,71957.0,71936.0,0.00144]
[1773613569000,0.06596705,71955.0,71936.0,0.00144]
[1773613570002,0.06596705,71955.0,71937.0,0.06950526]
[1773613570236,0.00144,71957.0,71938.0,0.06799076]
[1773613570562,0.06596705,71956.0,71936.0,0.07094599]
[1773613571104,0.06948787,71955.0,71936.0,0.07094599]
[1773613571437,0.13545492,71955.0,71936.0,0.13893675]
[1773613571603,0.06948787,71955.0,71936.0,0.13893675]
[1773613571806,0.06596705,71954.0,71936.0,0.13893675]
[1773613572849,0.06596705,71954.0,71936.0,0.17044]
[1773613573437,0.06596705,71952.0,71936.0,0.17044]
[1773613573990,0.06596705,71952.0,71932.0,0.00144]
[1773613574564,0.06596705,71952.0,71928.0,0.06973393]
[1773613574883,0.06596705,71952.0,71932.0,0.00144]
[1773613575082,0.278,71952.0,71932.0,0.00144]
[1773613575297,0.06596705,71951.0,71932.0,0.00144]
[1773613575484,0.06596705,71949.0,71932.0,0.00144]
[1773613575810,0.06596705,71948.0,71932.0,0.00144]
[1773613575937,0.278,71948.0,71932.0,0.00144]
[1773613576138,0.06596705,71947.0,71932.0,0.00144]
[1773613576393,0.34396705,71947.0,71932.0,0.00144]
[1773613576757,0.34396705,71947.0,71936.0,0.00022]
[1773613578299,0.06949656,71946.0,71936.0,0.00022]
[1773613578461,0.34749656,71946.0,71936.0,0.00022]
[1773613579303,0.06596705,71945.0,71932.0,0.00144]
[1773613579465,0.06596705,71944.0,71932.0,0.00144]
[1773613579653,0.06596705,71943.0,71932.0,0.00144]
[1773613579851,0.34396705,71943.0,71928.0,0.06973391]
[1773613580100,0.34396705,71943.0,71929.0,0.00144]
[1773613580342,0.06596705,71941.0,71928.0,0.00144]
[1773613580609,0.06596705,71938.0,71918.0,0.00144]
[1773613580817,0.278,71938.0,71916.0,0.00144]
[1773613581071,0.06596705,71937.0,71915.0,0.00149]
[1773613581248,0.278,71937.0,71915.0,0.00144]
[1773613581414,0.06596705,71936.0,71915.0,0.00144]
[1773613581629,0.06596705,71934.0,71914.0,0.06952731]
[1773613581804,0.06596705,71933.0,71915.0,0.00144]
[1773613582005,0.06985444,71932.0,71915.0,0.00144]
[1773613582200,0.06985444,71930.0,71915.0,0.07096593]
[1773613582411,0.06985444,71929.0,71915.0,0.00144]
[1773613582727,0.06985444,71928.0,71915.0,0.00144]
[1773613582930,0.06985444,71927.0,71915.0,0.00144]
[1773613583131,0.34785444,71927.0,71915.0,0.00144]
[1773613583335,0.34785444,71927.0,71915.0,0.07096639]
[1773613583716,0.34785444,71927.0,71915.0,0.00144]
[1773613583922,0.34785444,71927.0,71915.0,0.0709663]
[1773613584149,0.06951589,71926.0,71915.0,0.0709663]
[1773613584453,0.34751589,71926.0,71915.0,0.0709663]
[1773613585754,0.34751589,71926.0,71915.0,0.0711863]
[1773613586322,0.34851589,71926.0,71915.0,0.0711863]
[1773613587571,0.34751589,71926.0,71915.0,0.0711863]
[1773613588008,0.34851589,71926.0,71915.0,0.0711863]
[1773613589162,0.34751589,71926.0,71915.0,0.0711863]
[1773613589588,0.34851589,71926.0,71915.0,0.0711863]
[1773613592097,0.34851589,71926.0,71915.0,0.0715129]
[1773613592389,0.06985444,71925.0,71915.0,0.0715129]
[1773613592678,0.34785444,71925.0,71915.0,0.0715129]
[1773613593444,0.34767722,71925.0,71915.0,0.0715129]
[1773613593660,0.06951782,71924.0,71915.0,0.0715129]
[1773613595172,0.06934059,71924.0,71915.0,0.0715129]
[1773613596393,0.07034059,71924.0,71915.0,0.0715129]
[1773613598414,0.07034059,71924.0,71916.0,0.00144]
[1773613599548,0.06951782,71924.0,71916.0,0.07096499]
[1773613600286,0.06934054,71924.0,71916.0,0.07096499]
[1773613601034,0.06934054,71924.0,71910.0,5e-05]
[1773613601035,0.07034054,71924.0,71910.0,5e-05]
[1773613601316,0.06985444,71919.0,71906.0,0.00144]
[1773613601486,0.06985444,71919.0,71901.0,0.06953979]
[1773613601662,0.06952362,71918.0,71906.0,0.00144]
[1773613602525,0.06985444,71917.0,71906.0,0.00144]
[1773613603879,0.06952555,71916.0,71906.0,0.00144]
[1773613604082,0.06985444,71915.0,71906.0,0.00144]
[1773613604510,0.06985444,71915.0,71904.0,0.00022]
[1773613605781,0.06985444,71915.0,71897.0,0.00022]
[1773613605995,0.06985444,71915.0,71897.0,0.00032668]
[1773613605996,0.06952845,71913.0,71897.0,0.00032668]
[1773613606235,0.06985444,71912.0,71897.0,0.00032668]
[1773613606394,0.08458708,71912.0,71897.0,0.00032668]
[1773613606696,0.06985444,71911.0,71897.0,0.00032668]
[1773613606896,0.15444152,71911.0,71897.0,0.0698704]
[1773613607188,0.08458708,71911.0,71897.0,0.0698704]
[1773613608549,0.06953135,71910.0,71897.0,0.0698704]
[1773613608767,0.06953135,71910.0,71898.0,0.0390687]
[1773613610181,0.06985444,71916.0,71898.0,0.0390687]
[1773613610182,0.07095978,71922.0,71898.0,0.0390687]
[1773613610383,0.06951685,71925.0,71898.0,0.038631]
[1773613610824,0.06951685,71925.0,71900.0,0.038631]
[1773613611027,0.06951685,71925.0,71902.0,0.038631]
[1773613611388,0.06971638,71926.0,71902.0,0.038631]
[1773613611589,0.06971636,71926.0,71902.0,0.038631]
[1773613611863,1.6e-06,71928.0,71902.0,0.04039989]
[1773613613042,1.6e-06,71928.0,71904.0,0.04133207]
[1773613614544,1.6e-06,71928.0,71904.0,0.04233207]
[1773613615167,1.6e-06,71928.0,71906.0,0.04107139]
[1773613615779,1.6e-06,71928.0,71908.0,0.04084988]
[1773613617340,0.0002016,71928.0,71910.0,0.04062928]
[1773613617937,0.06971585,71928.0,71910.0,0.04062928]
[1773613618129,0.06971585,71928.0,71909.0,0.06953232]
[1773613618130,0.06758493,71927.0,71909.0,0.06953232]
[1773613618863,0.06758493,71927.0,71910.0,0.04019076]
[1773613619468,0.06758493,71927.0,71911.0,0.06953039]
[1773613620649,0.13710055,71927.0,71911.0,0.06953039]
[1773613620857,0.06758493,71927.0,71911.0,0.06953039]